[Event "Tatra Limba Master 2022"]
[Site "Poronin"]
[Date "2022.01.07"]
[Round "3.1"]
[White "Golubka, Petro"]
[Black "Kowalczyk, Pawel"]
[Result "1/2-1/2"]
[ECO "B31"]
[WhiteElo "2408"]
[BlackElo "2338"]
[Annotator "ChessBase"]
[PlyCount "38"]
[EventDate "2022.01.07"]
[EventType "swiss"]
[EventCountry "POL"]
[SourceTitle "playchess.com"]
[Source "ChessBase"]
[SourceQuality "1"]
[TimeControl "5400+30"]

1. e4 {[%emt 0:04:04]} c5 {[%emt 0:00:06]} 2. Nf3 {[%emt 0:00:04]} Nc6 {[%emt 0:02:05]} 3. Bb5 {[%emt 0:00:22]} g6 {[%emt 0:01:30]} 4. O-O {[%emt 0:00:08]} Bg7 {[%emt 0:00:02]} 5. c3 {[%emt 0:00:08]} Nf6 {[%emt 0:00:47]} 6. Re1 {[%emt 0:00:09]} O-O {[%emt 0:00:50]} 7. h3 {[%emt 0:00:18]} d6 {[%emt 0:04:49]} 8. Na3 {[%emt 0:02:52]} Bd7 {[%emt 0:03:39]} 9. d4 {[%emt 0:01:57]} a6 {[%emt 0:02:52]} 10. Bf1 {[%emt 0:00:38]} cxd4 {[%emt 0:01:59]} 11. Nxd4 {[%emt 0:01:45]} Rc8 {[%emt 0:04:04]} 12. Bf4 {[%emt 0:05:03]} b5 {[%emt 0:11:19]} 13. Nxc6 {[%emt 0:03:02]} Bxc6 {[%emt 0:00:19]} 14. e5 {[%emt 0:00:37]} Nd5 {[%emt 0:05:02]} 15. Bg3 {[%emt 0:05:07]} dxe5 {[%emt 0:01:02]} 16. Bxe5 {[%emt 0:00:47]} Bxe5 {[%emt 0:02:04]} 17. Rxe5 {[%emt 0:02:45]} Qd6 {[%emt 0:00:20]} 18. Qe1 {[%emt 0:01:31]} e6 {[%emt 0:08:30]} 19. Rd1 {[%emt 0:01:28]} Qb8 1/2-1/2

[Event "Tatra Limba Master 2022"]
[Site "Poronin"]
[Date "2022.01.07"]
[Round "3.2"]
[White "Pniaczek, Marek"]
[Black "Walkusz, Witoslaw"]
[Result "1-0"]
[ECO "C55"]
[WhiteElo "2329"]
[BlackElo "2024"]
[Annotator "RC"]
[PlyCount "121"]
[EventDate "2022.01.07"]
[EventType "swiss"]
[EventCountry "POL"]
[SourceTitle "playchess.com"]
[Source "ChessBase"]
[SourceQuality "1"]
[TimeControl "5400+30"]

1. e4 {[%emt 0:00:03]} e5 {[%emt 0:00:07]} 2. Nf3 {[%emt 0:00:02]} Nc6 {[%emt 0:00:06]} 3. Bc4 {[%emt 0:00:03]} Nf6 {[%emt 0:00:31]} 4. d4 {[%emt 0:00:04]} exd4 {[%emt 0:02:13]} 5. e5 {[%emt 0:02:25]} Ng4 {[%emt 0:04:15]} 6. O-O {[%emt 0:00:53]} d6 {[%emt 0:02:32]} 7. exd6 {[%emt 0:00:06]} Bxd6 {[%emt 0:14:18]} 8. Re1+ {[%emt 0:00:17]} Kf8 {[%emt 0:05:30]} 9. Nbd2 {[%emt 0:03:44]} Bf5 {[%emt 0:38:39]} 10. Ne4 {[%emt 0:08:04]} Bxe4 {[%emt 0:08:15]} 11. Rxe4 {[%emt 0:00:09]} Nf6 {[%emt 0:00:13]} 12. Re1 {[%emt 0:19:45]} a6 {[%emt 0:01:20]} 13. Ng5 {[%emt 0:12:57]} Ne5 {[%emt 0:06:48]} 14. Rxe5 {[%emt 0:00:37]} Bxe5 {[%emt 0:00:12]} 15. Nxf7 {[%emt 0:00:05]} Qe7 {[%emt 0:02:55]} 16. Nxh8 {[%emt 0:00:06]} b5 {[%emt 0:02:10]} 17. Bb3 {[%emt 0:00:41]} c5 {[%emt 0:00:25]} 18. Bf7 {[%emt 0:05:07]} Qd6 {[%emt 0:03:23]} 19. g3 {[%emt 0:25:24]} Ke7 {[%emt 0:00:18]} 20. f4 {[%emt 0:03:31]} Rxh8 {[%emt 0:00:04]} 21. fxe5 {[%emt 0:01:01]} Qxe5 {[%emt 0:00:06]} 22. Bf4 {[%emt 0:00:37]} Qf5 {[%emt 0:01:13]} 23. Bb3 {[%emt 0:01:04]} c4 {[%emt 0:01:51]} 24. Qxd4 {[%emt 0:01:32]} Rc8 {[%emt 0:02:05]} 25. c3 {[%emt 0:06:51]} cxb3 {[%emt 0:00:32]} 26. axb3 {[%emt 0:00:01]} Rc6 {[%emt 0:00:53]} 27. Rf1 {[%emt 0:04:08]} Qc5 {[%emt 0:00:37]} 28. Be3 {[%emt 0:01:20]} Qxd4 {[%emt 0:00:33]} 29. Bxd4 {[%emt 0:00:01]} Ne8 {[%emt 0:00:48]} 30. Kg2 {[%emt 0:00:25]} g6 {[%emt 0:00:22]} 31. g4 {[%emt 0:01:46]} Nc7 {[%emt 0:00:41]} 32. Rf3 {[%emt 0:01:24]} Ne6 {[%emt 0:00:26]} 33. Be5 {[%emt 0:00:13]} Rc5 {[%emt 0:01:10]} 34. Bf6+ {[%emt 0:00:17]} Kd7 {[%emt 0:00:28]} 35. h4 {[%emt 0:01:12]} Rd5 {[%emt 0:00:56]} 36. Kg3 {[%emt 0:00:33]} Rd2 {[%emt 0:00:25]} 37. c4 {[%emt 0:00:04]} Nc5 {[%emt 0:00:24]} 38. Re3 {[%emt 0:01:35]} Rd3 {[%emt 0:00:50]} 39. Rxd3+ {[%emt 0:00:43]} Nxd3 {[%emt 0:00:02]} 40. Kf3 {[%emt 0:00:36]} Ke6 {[%emt 0:01:02]} 41. Ke3 {[%emt 0:00:59]} Ne1 {[%emt 0:00:37]} 42. Bg5 {[%emt 0:00:33]} h5 {[%emt 0:00:34]} 43. gxh5 {[%emt 0:00:09]} gxh5 {[%emt 0:00:01]} 44. Kd4 {[%emt 0:00:48]} Kd6 {[%emt 0:00:23]} 45. c5+ {[%emt 0:00:33]} Kc6 {[%emt 0:00:02]} 46. b4 {[%emt 0:00:18]} Nf3+ {[%emt 0:00:38]} 47. Ke4 {[%emt 0:00:14]} Ne1 {[%emt 0:00:16]} 48. Bd2 {[%emt 0:00:37]} Ng2 {[%emt 0:00:16]} 49. Bg5 {[%emt 0:00:11]} Ne1 {[%emt 0:00:03]} 50. Bf6 {[%emt 0:00:33]} a5 {[%emt 0:00:58]} 51. bxa5 {[%emt 0:00:20]} Kxc5 {[%emt 0:00:09]} 52. b4+ {[%emt 0:00:46]} Kc6 {[%emt 0:01:07]} 53. Kf5 {[%emt 0:00:22]} Nc2 {[%emt 0:01:15]} 54. Be7 {[%emt 0:00:18]} Ne3+ {[%emt 0:00:54]} 55. Kg5 {[%emt 0:00:28]} Nd5 {[%emt 0:00:26]} 56. Bc5 {[%emt 0:00:15]} Kd7 {[%emt 0:00:28]} 57. Kxh5 {[%emt 0:00:12]} Ke6 {[%emt 0:00:16]} 58. Kg5 {[%emt 0:00:42]} Nc7 {[%emt 0:00:46]} 59. h5 {[%emt 0:00:27]} Na6 {[%emt 0:00:22]} 60. h6 {[%emt 0:00:31]} Kf7 {[%emt 0:00:32]} 61. Bd6 {[%emt 0:00:04]} 1-0

[Event "Tatra Limba Master 2022"]
[Site "Poronin"]
[Date "2022.01.07"]
[Round "3.3"]
[White "Ustianovich, Nazar"]
[Black "Zylka, Stanislaw"]
[Result "1/2-1/2"]
[ECO "E04"]
[WhiteElo "2344"]
[BlackElo "2406"]
[Annotator "ChessBase"]
[PlyCount "35"]
[EventDate "2022.01.07"]
[EventType "swiss"]
[EventCountry "POL"]
[SourceTitle "playchess.com"]
[Source "ChessBase"]
[SourceQuality "1"]
[TimeControl "5400+30"]

1. d4 {[%emt 0:13:08]} Nf6 {[%emt 0:00:12]} 2. c4 {[%emt 0:00:15]} e6 {[%emt 0:00:06]} 3. Nf3 {[%emt 0:03:34]} d5 {[%emt 0:00:12]} 4. g3 {[%emt 0:01:05]} dxc4 {[%emt 0:00:09]} 5. Bg2 {[%emt 0:00:21]} a6 {[%emt 0:00:09]} 6. O-O {[%emt 0:01:53]} Nc6 {[%emt 0:00:09]} 7. e3 {[%emt 0:02:36]} Rb8 {[%emt 0:00:10]} 8. Nfd2 {[%emt 0:01:58]} e5 {[%emt 0:00:11]} 9. Nxc4 {[%emt 0:23:07]} exd4 {[%emt 0:00:12]} 10. Bxc6+ {[%emt 0:00:01]} bxc6 {[%emt 0:00:02]} 11. Qxd4 {[%emt 0:00:01]} Qxd4 {[%emt 0:03:20]} 12. exd4 {[%emt 0:00:04]} Be6 {[%emt 0:00:18]} 13. b3 {[%emt 0:10:45]} c5 {[%emt 0:04:44]} 14. dxc5 {[%emt 0:05:47]} Bxc5 {[%emt 0:00:03]} 15. Ba3 {[%emt 0:02:19]} Bd4 {[%emt 0:05:47]} 16. Bb2 {[%emt 0:00:08]} Bxb2 {[%emt 0:00:42]} 17. Nxb2 {[%emt 0:00:03]} O-O {[%emt 0:03:41]} 18. Rc1 {[%emt 0:01:55]} 1/2-1/2

[Event "Tatra Limba Master 2022"]
[Site "Poronin"]
[Date "2022.01.07"]
[Round "3.4"]
[White "Gajdzica, Maciej"]
[Black "Zielonka, Adam"]
[Result "1/2-1/2"]
[ECO "B40"]
[WhiteElo "1960"]
[BlackElo "1862"]
[Annotator "NA"]
[PlyCount "65"]
[EventDate "2022.01.07"]
[EventType "swiss"]
[EventCountry "POL"]
[SourceTitle "playchess.com"]
[Source "ChessBase"]
[SourceQuality "1"]
[TimeControl "5400+30"]

1. e4 {[%emt 0:00:02]} c5 {[%emt 0:00:06]} 2. Nf3 {[%emt 0:00:08]} e6 {[%emt 0:00:08]} 3. c4 {[%emt 0:00:11]} Nc6 {[%emt 0:00:05]} 4. Nc3 {[%emt 0:00:08]} e5 {[%emt 0:00:18]} 5. Be2 {[%emt 0:00:31]} d6 {[%emt 0:00:05]} 6. a3 {[%emt 0:01:20]} g6 {[%emt 0:00:27]} 7. d3 {[%emt 0:01:27]} Bg7 {[%emt 0:00:09]} 8. h4 {[%emt 0:06:36]} h6 {[%emt 0:00:24]} 9. Nd5 {[%emt 0:08:11]} Nge7 {[%emt 0:02:23]} 10. h5 {[%emt 0:01:00]} Nxd5 {[%emt 0:21:38]} (10... g5 $11 {feels stronger.}) 11. cxd5 {[%emt 0:00:07]} Nd4 {[%emt 0:00:38]} 12. Nxd4 {[%emt 0:02:22]} exd4 {[%emt 0:02:44]} 13. Bd2 {[%emt 0:10:32]} g5 {[%emt 0:03:20]} 14. O-O {[%emt 0:08:53]} O-O {[%emt 0:01:12]} 15. f4 $11 {[%emt 0:02:06]} f6 {[%emt 0:05:38]} 16. Bg4 {[%emt 0:03:55]} Qe7 {[%emt 0:10:17]} 17. Rc1 {[%emt 0:09:56]} Rf7 {[%emt 0:03:42]} 18. b4 {[%emt 0:10:08]} b6 {[%emt 0:00:07]} 19. Bxc8 {[%emt 0:07:07]} Rxc8 {[%emt 0:01:01]} 20. Qg4 {[%emt 0:00:19]} Qd7 {[%emt 0:00:24]} 21. Qxd7 {[%emt 0:10:22]} Rxd7 {[%emt 0:00:02]} 22. Be1 {[%emt 0:00:51]} b5 {[%emt 0:23:04]} 23. Bg3 {[%emt 0:04:54]} c4 {[%emt 0:01:01]} 24. f5 {[%emt 0:00:23]} Rdd8 {[%emt 0:03:47]} 25. Rfd1 {[%emt 0:02:11]} cxd3 {[%emt 0:02:59]} 26. Rxc8 {[%emt 0:01:00]} Rxc8 {[%emt 0:00:01]} 27. Rxd3 {[%emt 0:00:02]} Bf8 {[%emt 0:00:18]} 28. Bf2 {[%emt 0:01:58]} a6 {[%emt 0:00:33]} 29. Bxd4 {[%emt 0:00:25]} Kf7 {[%emt 0:00:07]} 30. Bc3 {[%emt 0:02:40]} Rc4 {[%emt 0:00:27]} 31. Re3 {[%emt 0:00:06]} Be7 {[%emt 0:00:28]} 32. Kf2 {[%emt 0:00:14]} Bd8 {[%emt 0:00:25]} 33. Kf3 {[%emt 0:00:13]} 1/2-1/2

[Event "Tatra Limba Master 2022"]
[Site "Poronin"]
[Date "2022.01.07"]
[Round "3.5"]
[White "Rejniak, Zuzanna"]
[Black "Mirski, Michal"]
[Result "1/2-1/2"]
[ECO "B24"]
[WhiteElo "1799"]
[BlackElo "2039"]
[Annotator "NA"]
[PlyCount "191"]
[EventDate "2022.01.07"]
[EventType "swiss"]
[EventCountry "POL"]
[SourceTitle "playchess.com"]
[Source "ChessBase"]
[SourceQuality "1"]
[TimeControl "5400+30"]

1. e4 {[%emt 0:00:03]} c5 {[%emt 0:00:25]} 2. Nc3 {[%emt 0:00:10]} Nc6 {[%emt 0:00:12]} 3. g3 {[%emt 0:00:35]} g6 {[%emt 0:00:15]} 4. Bg2 {[%emt 0:00:07]} Bg7 {[%emt 0:00:01]} 5. d3 {[%emt 0:01:04]} e6 {[%emt 0:00:09]} 6. Nge2 {[%emt 0:03:08]} Nge7 {[%emt 0:00:15]} 7. Be3 {[%emt 0:04:58]} b6 {[%emt 0:00:22]} 8. Qd2 {[%emt 0:00:38]} d5 {[%emt 0:03:46]} 9. exd5 $1 {[%emt 0:01:45]} exd5 {[%emt 0:00:17]} 10. d4 {[%emt 0:14:29]} c4 {[%emt 0:07:09]} (10... Be6 $14 {should be considered.}) 11. O-O {[%emt 0:10:48]} O-O {[%emt 0:00:42]} 12. Nf4 {[%emt 0:00:43]} Be6 {[%emt 0:00:28]} 13. Rfe1 {[%emt 0:01:36]} ({Of course not} 13. Nxe6 fxe6 14. Ne2 Qd7 $11) 13... Qd7 {[%emt 0:02:45]} 14. b3 {[%emt 0:10:28]} cxb3 {[%emt 0:02:08]} 15. cxb3 {[%emt 0:00:12]} Rac8 {[%emt 0:01:44]} 16. Rac1 {[%emt 0:02:17]} Rfe8 $14 {[%emt 0:00:30]} 17. h4 {[%emt 0:16:27]} h5 {[%emt 0:07:15]} 18. Kh2 {[%emt 0:08:19]} Bf6 {[%emt 0:02:29]} 19. Qd1 {[%emt 0:00:55]} Kg7 {[%emt 0:03:51]} 20. Qd2 {[%emt 0:03:19]} Rcd8 {[%emt 0:12:07]} 21. Qd3 {[%emt 0:08:51]} Qb7 {[%emt 0:09:19]} 22. Rcd1 {[%emt 0:05:17]} Bf5 {[%emt 0:00:58]} 23. Qf1 {[%emt 0:01:03]} Nb4 {[%emt 0:01:24]} 24. Qh1 {[%emt 0:00:38]} Qc6 {[%emt 0:07:08]} 25. Rc1 {[%emt 0:00:05]} Qd7 {[%emt 0:00:59]} 26. Re2 {[%emt 0:01:20]} Bg4 {[%emt 0:02:23]} 27. Rd2 {[%emt 0:00:25]} Be6 {[%emt 0:04:02]} 28. Qf1 {[%emt 0:02:24]} Nbc6 {[%emt 0:02:10]} 29. Qb5 {[%emt 0:00:35]} Nb8 {[%emt 0:05:40]} 30. Qxd7 {[%emt 0:00:16]} Rxd7 {[%emt 0:00:11]} 31. Nb5 {[%emt 0:01:03]} Na6 {[%emt 0:03:53]} 32. Bf1 {[%emt 0:01:56]} Bf5 {[%emt 0:00:26]} 33. Na3 {[%emt 0:00:09]} Nc7 {[%emt 0:00:39]} 34. Nb5 {[%emt 0:00:47]} Ne6 {[%emt 0:03:57]} 35. Bg2 {[%emt 0:00:28]} a6 {[%emt 0:02:19]} 36. Nc3 {[%emt 0:00:03]} Rc8 {[%emt 0:02:19]} 37. Rdd1 {[%emt 0:00:29]} Bg4 {[%emt 0:02:53]} 38. f3 {[%emt 0:00:49]} Bf5 {[%emt 0:00:36]} 39. Nxe6+ {[%emt 0:00:18]} fxe6 {[%emt 0:00:45]} 40. Na4 {[%emt 0:00:03]} Rb8 {[%emt 0:03:18]} 41. Bf4 {[%emt 0:00:04]} Rc8 {[%emt 0:04:43]} 42. Rxc8 {[%emt 0:00:14]} Nxc8 {[%emt 0:00:06]} 43. Rc1 {[%emt 0:00:01]} Ne7 {[%emt 0:01:00]} 44. Be3 {[%emt 0:00:52]} Rb7 {[%emt 0:01:19]} 45. Bf1 {[%emt 0:00:03]} b5 {[%emt 0:00:23]} 46. Nc5 {[%emt 0:00:07]} Rb6 {[%emt 0:01:15]} 47. Nd7 {[%emt 0:00:16]} Rc6 {[%emt 0:00:32]} 48. Nxf6 {[%emt 0:00:30]} Kxf6 {[%emt 0:00:42]} 49. Rxc6 {[%emt 0:00:30]} Nxc6 {[%emt 0:00:01]} 50. a4 {[%emt 0:00:16]} bxa4 {[%emt 0:00:31]} 51. bxa4 {[%emt 0:00:04]} Bc2 {[%emt 0:02:06]} 52. Bxa6 {[%emt 0:00:08]} Bxa4 {[%emt 0:00:03]} 53. f4 {[%emt 0:00:33]} Nb4 {[%emt 0:00:33]} 54. Be2 {[%emt 0:00:33]} Bc2 {[%emt 0:00:20]} 55. Bd2 {[%emt 0:01:04]} Nc6 {[%emt 0:00:05]} 56. Bc3 {[%emt 0:00:02]} Kf5 {[%emt 0:00:07]} 57. Bf3 {[%emt 0:00:06]} Be4 {[%emt 0:00:20]} 58. Be2 {[%emt 0:00:07]} Kf6 {[%emt 0:00:36]} 59. Kg1 {[%emt 0:00:30]} Ne7 {[%emt 0:00:21]} 60. Kf2 {[%emt 0:00:57]} Nf5 {[%emt 0:00:04]} 61. Bb4 {[%emt 0:00:19]} Kf7 {[%emt 0:00:49]} 62. Bc5 {[%emt 0:00:04]} Nh6 {[%emt 0:01:02]} 63. Bb5 {[%emt 0:00:57]} Ng4+ {[%emt 0:00:15]} 64. Ke2 {[%emt 0:00:22]} Kf6 {[%emt 0:00:37]} 65. Bd7 {[%emt 0:02:55]} Bc2 {[%emt 0:00:24]} 66. Kd2 {[%emt 0:01:33]} Bb3 {[%emt 0:00:15]} 67. Bb5 {[%emt 0:00:31]} Nf2 {[%emt 0:00:23]} 68. Bd3 {[%emt 0:00:17]} Nh1 {[%emt 0:01:08]} 69. Ke1 {[%emt 0:00:43]} Bc4 {[%emt 0:01:50]} 70. Bxc4 {[%emt 0:01:06]} dxc4 {[%emt 0:00:06]} 71. Kd2 {[%emt 0:00:21]} Nxg3 {[%emt 0:00:34]} 72. Kc3 {[%emt 0:00:01]} Ne2+ {[%emt 0:00:15]} 73. Kxc4 {[%emt 0:00:14]} Nxf4 {[%emt 0:00:07]} 74. Bd6 {[%emt 0:00:15]} Ng2 {[%emt 0:01:54]} 75. Bc7 {[%emt 0:00:06]} Kf5 {[%emt 0:00:06]} 76. Bd8 {[%emt 0:00:03]} Ne3+ {[%emt 0:00:36]} 77. Kc5 {[%emt 0:00:25]} Ke4 {[%emt 0:00:28]} 78. Kd6 {[%emt 0:00:12]} Kf5 {[%emt 0:00:27]} 79. Bg5 {[%emt 0:00:18]} Nc2 {[%emt 0:00:23]} 80. Kc5 {[%emt 0:01:15]} Ke4 {[%emt 0:00:11]} 81. Bf6 {[%emt 0:00:09]} Ne3 {[%emt 0:00:47]} 82. Kd6 {[%emt 0:00:49]} Kf5 {[%emt 0:00:14]} 83. Bd8 {[%emt 0:00:05]} e5 {[%emt 0:00:44]} 84. dxe5 {[%emt 0:00:28]} Nc4+ {[%emt 0:00:05]} 85. Ke7 {[%emt 0:00:09]} Nxe5 {[%emt 0:00:06]} 86. Kf8 {[%emt 0:00:03]} Nf3 {[%emt 0:01:01]} 87. Kg7 {[%emt 0:00:05]} Nxh4 {[%emt 0:00:51]} 88. Bxh4 {[%emt 0:00:04]} g5 {[%emt 0:00:04]} 89. Bf2 {[%emt 0:02:43]} h4 {[%emt 0:00:23]} 90. Kh6 {[%emt 0:00:06]} h3 {[%emt 0:00:23]} 91. Bg1 {[%emt 0:00:13]} Kg4 {[%emt 0:01:04]} 92. Kg6 {[%emt 0:00:23]} Kf4 {[%emt 0:00:56]} 93. Kh5 {[%emt 0:00:35]} g4 {[%emt 0:00:07]} 94. Kh4 {[%emt 0:00:05]} Kf3 {[%emt 0:00:05]} 95. Bh2 {[%emt 0:00:06]} Kg2 {[%emt 0:00:28]} 96. Bd6 1/2-1/2

[Event "Tatra Limba Master 2022"]
[Site "Poronin"]
[Date "2022.01.07"]
[Round "3.6"]
[White "Kotowicz, Kamil"]
[Black "Starosciak, Szymon"]
[Result "1/2-1/2"]
[ECO "D00"]
[WhiteElo "1732"]
[BlackElo "1986"]
[Annotator "NA"]
[PlyCount "109"]
[EventDate "2022.01.07"]
[EventType "swiss"]
[EventCountry "POL"]
[SourceTitle "playchess.com"]
[Source "ChessBase"]
[SourceQuality "1"]
[TimeControl "5400+30"]

1. d4 {[%emt 0:00:14]} d5 {[%emt 0:00:08]} 2. g3 {[%emt 0:00:28]} Nf6 {[%emt 0:00:41]} 3. Bg2 {[%emt 0:00:19]} e6 {[%emt 0:01:24]} 4. Nf3 {[%emt 0:00:52]} Be7 {[%emt 0:01:49]} 5. O-O {[%emt 0:01:37]} O-O {[%emt 0:00:09]} 6. c4 {[%emt 0:01:17]} dxc4 {[%emt 0:00:25]} 7. Qa4 {[%emt 0:03:08]} a6 {[%emt 0:07:07]} 8. Qxc4 {[%emt 0:01:39]} b5 $1 {[%emt 0:00:13]} 9. Qc2 {[%emt 0:02:22]} Bb7 {[%emt 0:00:14]} 10. Bf4 {[%emt 0:02:33]} Nd5 {[%emt 0:02:45]} 11. e4 {[%emt 0:01:21]} (11. Nc3 $11) 11... Nxf4 {[%emt 0:01:12]} 12. gxf4 {[%emt 0:00:07]} Nd7 {[%emt 0:13:14]} (12... Qd6 $17 13. e5 Qb6) 13. Rd1 {[%emt 0:08:11]} f5 $15 {[%emt 0:14:48]} 14. Qb3 {[%emt 0:18:12]} Kh8 {[%emt 0:14:06]} 15. Nc3 {[%emt 0:11:56]} fxe4 {[%emt 0:08:40]} 16. Ne5 {[%emt 0:00:55]} Rxf4 {[%emt 0:02:28]} 17. Qxe6 {[%emt 0:01:15]} Nxe5 {[%emt 0:01:22]} 18. dxe5 {[%emt 0:00:46]} Qf8 {[%emt 0:00:33]} 19. Nd5 {[%emt 0:09:58]} Bxd5 {[%emt 0:02:23]} 20. Qxd5 {[%emt 0:01:56]} Rg4 {[%emt 0:05:49]} 21. h3 {[%emt 0:02:28]} c6 {[%emt 0:13:32]} 22. Qb3 {[%emt 0:06:29]} Rg6 {[%emt 0:01:47]} 23. Kh1 {[%emt 0:03:54]} Qxf2 {[%emt 0:00:17]} 24. Bxe4 {[%emt 0:02:32]} Rg3 {[%emt 0:00:57]} 25. Rf1 {[%emt 0:05:10]} Rxb3 {[%emt 0:01:01]} 26. Rxf2 {[%emt 0:00:04]} Rxh3+ {[%emt 0:00:27]} 27. Kg2 {[%emt 0:00:07]} Rh6 {[%emt 0:00:44]} 28. Rf7 {[%emt 0:02:09]} Re6 {[%emt 0:00:49]} 29. Bxc6 {[%emt 0:02:29]} Rc8 {[%emt 0:02:42]} 30. Bd7 {[%emt 0:02:22]} Rc2+ {[%emt 0:00:09]} 31. Kf3 {[%emt 0:00:21]} Rxe5 {[%emt 0:00:10]} 32. Rd1 {[%emt 0:03:58]} h6 {[%emt 0:01:42]} 33. Bf5 {[%emt 0:00:41]} Rxf5+ {[%emt 0:00:09]} 34. Rxf5 {[%emt 0:00:09]} Rxb2 {[%emt 0:00:05]} 35. Rf7 {[%emt 0:02:56]} Bf6 {[%emt 0:01:12]} 36. a3 {[%emt 0:01:44]} Rb3+ {[%emt 0:00:20]} 37. Kg4 {[%emt 0:00:18]} Kh7 {[%emt 0:00:48]} 38. Rd6 {[%emt 0:01:01]} Kg6 {[%emt 0:00:30]} 39. Ra7 {[%emt 0:00:16]} Rxa3 {[%emt 0:01:01]} 40. Rdxa6 {[%emt 0:00:19]} Rb3 {[%emt 0:01:16]} 41. Rb7 {[%emt 0:00:31]} h5+ {[%emt 0:00:12]} 42. Kf4 {[%emt 0:00:10]} h4 {[%emt 0:00:19]} 43. Rb8 {[%emt 0:01:59]} b4 {[%emt 0:01:26]} 44. Rh8 {[%emt 0:00:25]} Rd3 {[%emt 0:00:35]} 45. Rb6 {[%emt 0:00:46]} b3 {[%emt 0:00:21]} 46. Ke4 {[%emt 0:00:12]} Rg3 {[%emt 0:00:43]} 47. Rxh4 {[%emt 0:00:39]} b2 {[%emt 0:00:25]} 48. Rh2 {[%emt 0:00:18]} Rg1 {[%emt 0:00:44]} 49. Rhxb2 {[%emt 0:00:18]} Re1+ {[%emt 0:00:14]} 50. Kf3 {[%emt 0:00:35]} Re5 {[%emt 0:00:16]} 51. Rg2+ {[%emt 0:00:44]} Kh7 {[%emt 0:00:17]} 52. Rg4 {[%emt 0:00:45]} Ra5 {[%emt 0:00:15]} 53. Rb3 {[%emt 0:00:30]} Ra1 {[%emt 0:00:08]} 54. Rd3 {[%emt 0:00:32]} Ra5 {[%emt 0:00:15]} 55. Rb3 {[%emt 0:00:18]} 1/2-1/2

[Event "Tatra Limba Master 2022"]
[Site "Poronin"]
[Date "2022.01.07"]
[Round "3.7"]
[White "Smietanska, Wiktoria"]
[Black "Reichel, Lukasz"]
[Result "0-1"]
[ECO "B92"]
[WhiteElo "1910"]
[BlackElo "1748"]
[Annotator "ChessBase"]
[PlyCount "120"]
[EventDate "2022.01.07"]
[EventType "swiss"]
[EventCountry "POL"]
[SourceTitle "playchess.com"]
[Source "ChessBase"]
[SourceQuality "1"]
[TimeControl "5400+30"]

1. e4 {[%emt 0:00:02]} c5 {[%emt 0:01:11]} 2. Nf3 {[%emt 0:00:07]} d6 {[%emt 0:00:04]} 3. d4 {[%emt 0:00:08]} cxd4 {[%emt 0:00:03]} 4. Nxd4 {[%emt 0:00:08]} Nf6 {[%emt 0:00:06]} 5. Nc3 {[%emt 0:00:08]} a6 {[%emt 0:00:03]} 6. Be2 {[%emt 0:00:07]} e5 {[%emt 0:00:15]} 7. Nb3 {[%emt 0:00:10]} Be7 {[%emt 0:00:29]} 8. O-O {[%emt 0:00:11]} O-O {[%emt 0:00:19]} 9. Re1 {[%emt 0:00:06]} Be6 {[%emt 0:03:16]} 10. Bf3 {[%emt 0:00:12]} Qc7 {[%emt 0:09:52]} 11. a4 {[%emt 0:02:17]} Nbd7 {[%emt 0:02:08]} 12. a5 {[%emt 0:03:36]} h6 {[%emt 0:04:00]} 13. Be3 {[%emt 0:02:12]} b5 {[%emt 0:01:04]} 14. Qd2 {[%emt 0:10:16]} Rac8 {[%emt 0:10:23]} 15. Rac1 {[%emt 0:06:40]} Nc5 {[%emt 0:04:18]} 16. Nxc5 {[%emt 0:17:09]} dxc5 {[%emt 0:00:41]} 17. Nd5 {[%emt 0:00:51]} Bxd5 {[%emt 0:01:28]} 18. exd5 {[%emt 0:00:13]} Bd6 {[%emt 0:03:07]} 19. g3 {[%emt 0:02:54]} Rce8 {[%emt 0:07:07]} 20. c4 {[%emt 0:03:07]} b4 {[%emt 0:00:37]} 21. Ra1 {[%emt 0:01:50]} e4 {[%emt 0:02:44]} 22. Bd1 {[%emt 0:01:13]} Nd7 {[%emt 0:01:56]} 23. Ba4 {[%emt 0:01:36]} Ne5 {[%emt 0:00:43]} 24. Qe2 {[%emt 0:07:24]} Nf3+ {[%emt 0:05:21]} 25. Kh1 {[%emt 0:00:17]} Re5 {[%emt 0:06:01]} 26. Red1 {[%emt 0:02:07]} Rh5 {[%emt 0:03:30]} 27. h4 {[%emt 0:00:33]} Bxg3 {[%emt 0:01:26]} 28. Kg2 {[%emt 0:04:21]} Rxh4 {[%emt 0:06:03]} 29. Rh1 {[%emt 0:01:56]} Rxh1 {[%emt 0:03:09]} 30. Rxh1 {[%emt 0:00:12]} Bf4 {[%emt 0:01:51]} 31. Bxc5 {[%emt 0:02:37]} Qxc5 {[%emt 0:03:47]} 32. Qxe4 {[%emt 0:00:09]} Nd2 {[%emt 0:04:56]} 33. Qxf4 {[%emt 0:00:21]} Nxc4 {[%emt 0:00:50]} 34. Qf5 {[%emt 0:04:02]} Rd8 {[%emt 0:03:02]} 35. Rh4 {[%emt 0:13:54]} Rxd5 {[%emt 0:03:25]} 36. Qe4 {[%emt 0:01:55]} Rg5+ {[%emt 0:01:08]} 37. Rg4 {[%emt 0:12:34]} Rxg4+ {[%emt 0:00:56]} 38. Qxg4 {[%emt 0:00:12]} Qg5 {[%emt 0:02:31]} 39. Qxg5 {[%emt 0:00:22]} hxg5 {[%emt 0:00:01]} 40. Bb3 {[%emt 0:00:42]} Nxb2 {[%emt 0:04:15]} 41. Kf3 {[%emt 0:00:26]} Nd3 {[%emt 0:00:23]} 42. Ke3 {[%emt 0:00:16]} Nc5 {[%emt 0:01:33]} 43. Bd5 {[%emt 0:00:40]} b3 {[%emt 0:00:59]} 44. Kd4 {[%emt 0:00:18]} b2 {[%emt 0:00:27]} 45. Ba2 {[%emt 0:00:07]} Nb3+ {[%emt 0:00:44]} 46. Kc3 {[%emt 0:00:16]} Nxa5 {[%emt 0:00:20]} 47. Kxb2 {[%emt 0:00:09]} Nb7 {[%emt 0:00:41]} 48. Kb3 {[%emt 0:01:12]} Kf8 {[%emt 0:00:34]} 49. Kb4 {[%emt 0:00:19]} Ke7 {[%emt 0:00:21]} 50. Bd5 {[%emt 0:00:39]} Nd6 {[%emt 0:00:19]} 51. Ka5 {[%emt 0:00:09]} g4 {[%emt 0:00:33]} 52. Kxa6 {[%emt 0:00:08]} f5 {[%emt 0:00:20]} 53. Kb6 {[%emt 0:00:59]} Ne4 {[%emt 0:00:16]} 54. Kc6 {[%emt 0:00:40]} Nxf2 {[%emt 0:00:24]} 55. Kc5 {[%emt 0:00:07]} Kf6 {[%emt 0:00:18]} 56. Kd4 {[%emt 0:00:10]} f4 {[%emt 0:00:37]} 57. Bc6 {[%emt 0:00:17]} Kg5 {[%emt 0:00:20]} 58. Bg2 {[%emt 0:00:11]} f3 {[%emt 0:00:38]} 59. Bf1 {[%emt 0:00:15]} Kf4 {[%emt 0:00:17]} 60. Bc4 {[%emt 0:00:14]} g3 {[%emt 0:00:33]} 0-1